fUST/lending_fUST_20260118
["ID","MTS","AMOUNT","RATE_DAILY","PERIOD"]
[402403541,1768672271080,-1044.17,0.00017808,3]
[402403543,1768672271090,-909.68,0.00017808,3]
[402403545,1768672271101,-500.0,0.00017808,3]
[402403547,1768672271111,-500.0,0.00017808,3]
[402403549,1768672271122,-500.0,0.00017808,3]
[402403551,1768672271132,-730.73,0.00017808,3]
[402403554,1768672271142,-500.0,0.00017808,3]
[402403556,1768672271152,-500.0,0.00017808,3]
[402403558,1768672271162,-790.59,0.00017808,3]
[402403560,1768672271173,-500.0,0.00017808,3]
[402403562,1768672271186,-500.0,0.00017808,3]
[402403564,1768672271197,-1227.23904119,0.00017808,3]
[402403664,1768672272400,-500.0,0.00016438,3]
[402403666,1768672272409,-298.82775005,0.00016712,3]
[402403668,1768672272421,-326.23224995,0.00016712,3]
[402403670,1768672272431,-885.45095881,0.00017808,3]
[402403672,1768672272440,-511.42,0.00017808,3]
[402403674,1768672272450,-500.0,0.00017808,3]
[402403676,1768672272459,-139.70756926,0.00017808,3]
[402403694,1768672272614,-396.04243074,0.00017808,3]
[402403696,1768672272624,-500.0,0.00017808,3]
[402403698,1768672272633,-401.02947841,0.00017808,3]
[402403758,1768672273187,-277.37336634,0.00016438,3]
[402403760,1768672273198,-500.0,0.00016438,3]
[402403762,1768672273207,-500.0,0.00016438,3]
[402403763,1768672273216,-500.0,0.00016438,3]
[402403766,1768672273226,-500.0,0.00016438,3]
[402403768,1768672273235,-500.0,0.00016438,3]
[402403770,1768672273245,-500.0,0.00016712,3]
[402403771,1768672273255,-500.0,0.00016712,3]
[402403774,1768672273266,-4.50663366,0.00016712,3]
[402403776,1768672273278,-495.49336634,0.00016712,3]
[402403778,1768672273290,-500.0,0.00016712,3]
[402403779,1768672273300,-500.0,0.00016986,3]
[402403781,1768672273310,-500.0,0.00016986,3]
[402403783,1768672273319,-500.0,0.0001726,3]
[402403785,1768672273330,-500.0,0.0001726,3]
[402403787,1768672273340,-500.0,0.00017534,3]
[402403789,1768672273350,-500.0,0.00017534,3]
[402403791,1768672273360,-856.83052159,0.00017808,3]
[402403793,1768672273370,-299.49037579,0.00017808,3]
[402403824,1768672273803,-500.0,0.00016438,3]
[402403825,1768672273813,-500.0,0.00016438,3]
[402403827,1768672273823,-259.47517722,0.00016438,3]
[402403828,1768672273832,-500.0,0.00016438,3]
[402403830,1768672273842,-500.0,0.00016438,3]
[402403831,1768672273851,-500.0,0.00016712,3]
[402403833,1768672273860,-500.0,0.00016712,3]
[402403834,1768672273869,-500.0,0.00016712,3]
[402403836,1768672273878,-500.0,0.00016712,3]
[402403838,1768672273888,-500.0,0.00016712,3]
[402403839,1768672273897,-500.0,0.00016986,3]
[402403840,1768672273906,-500.0,0.00016986,3]
[402403842,1768672273916,-500.0,0.00016986,3]
[402403843,1768672273925,-500.0,0.00016986,3]
[402403845,1768672273934,-500.0,0.00016986,3]
[402403846,1768672273943,-515.71363238,0.0001726,3]
[402403848,1768672273953,-500.0,0.0001726,3]
[402403850,1768672273962,-500.0,0.0001726,3]
[402403851,1768672273972,-280.60158345,0.0001726,3]
[402403853,1768672273987,-500.0,0.00016438,3]
[402403855,1768672273997,-219.39841655,0.0001726,3]
[402403856,1768672274006,-180.60158345,0.0001726,3]
[402403858,1768672274018,-148.51841655,0.0001726,3]
[402403860,1768672274028,-500.0,0.00017534,3]
[402403861,1768672274039,-500.0,0.00017534,3]
[402403863,1768672274048,-452.77642284,0.00017534,3]
[402403865,1768672274070,-133.94357716,0.00017534,3]
[402403867,1768672274080,-200.50962421,0.00017808,3]
[402403868,1768672274089,-500.0,0.00017808,3]
[402403870,1768672274099,-564.16,0.00017808,3]
[402403872,1768672274109,-500.0,0.00017808,3]
[402403873,1768672274117,-340.24703168,0.00017808,3]
[402406556,1768672302879,500.0,0.00027397,120]
[402408198,1768672584491,-5000.0,0.00013257,2]
[402408199,1768672584752,-205.72113765,0.00013324,2]
[402408200,1768672584787,-174.0,0.0001339,2]
[402408201,1768672584818,-300.0,0.0001339,2]
[402408202,1768672584850,-300.0,0.0001339,2]
[402408203,1768672585014,-7060.84658705,0.00013391,2]
[402408204,1768672585051,-10000.01,0.00013391,2]
[402408205,1768672585085,-10000.01,0.00013391,2]
[402408206,1768672585147,-2775.07127859,0.00013391,2]
[402408207,1768672585178,-578.99581754,0.00013391,2]
[402408208,1768672585210,-500.0,0.00013391,2]
[402408209,1768672585245,-500.0,0.00013391,2]
[402408210,1768672585278,-500.0,0.00013391,2]
[402408211,1768672585411,-314.25385935,0.00013391,2]
[402408212,1768672585444,-500.0,0.00013391,2]
[402408213,1768672585478,-500.0,0.00013391,2]
[402408214,1768672585513,-500.0,0.00013391,2]
[402408215,1768672585548,-500.0,0.00013391,2]
[402408216,1768672585581,-500.0,0.00013391,2]
[402408217,1768672585615,-500.0,0.00013391,2]
[402408218,1768672585648,-312.65822503,0.00013391,2]
[402408219,1768672585682,-500.0,0.00013391,2]
[402408220,1768672585714,-500.0,0.00013391,2]
[402408221,1768672585746,-246.18583124,0.00013391,2]
[402408222,1768672585821,-253.81416876,0.00013391,2]
[402408223,1768672585856,-500.0,0.00013391,2]
[402408224,1768672585889,-500.0,0.00013391,2]
[402408225,1768672585927,-500.0,0.00013391,2]
[402408226,1768672585963,-500.0,0.00013391,2]
[402408227,1768672585996,-500.0,0.00013391,2]
[402408228,1768672586031,-500.0,0.00013391,2]
[402408229,1768672586064,-500.0,0.00013391,2]
[402408230,1768672586099,-500.0,0.00013391,2]
[402408231,1768672586131,-500.0,0.00013391,2]
[402408232,1768672586250,-582.8240449,0.00013391,2]
[402408233,1768672586287,-500.0,0.00013391,2]
[402408234,1768672586321,-500.0,0.00013391,2]
[402408235,1768672586356,-500.0,0.00013391,2]
[402408236,1768672586393,-500.0,0.00013391,2]
[402408237,1768672586427,-500.0,0.00013391,2]
[402408238,1768672586462,-500.0,0.00013391,2]
[402408239,1768672586495,-500.0,0.00013391,2]
[402408240,1768672586527,-500.0,0.00013391,2]
[402408241,1768672586561,-334.3619102,0.00013391,2]
[402408242,1768672587330,-165.6380898,0.00013391,2]
[402408243,1768672587360,-500.0,0.00013391,2]
[402408244,1768672587394,-500.0,0.00013391,2]
[402408245,1768672587424,-500.0,0.00013391,2]
[402408246,1768672587456,-500.0,0.00013391,2]
[402408247,1768672587486,-500.0,0.00013391,2]
[402408248,1768672587520,-500.0,0.00013391,2]
[402408249,1768672587551,-500.0,0.00013391,2]
[402408250,1768672587582,-500.0,0.00013391,2]
[402408251,1768672587611,-500.0,0.00013391,2]
[402408252,1768672587643,-168.7338204,0.00013391,2]
[402408253,1768672587784,-331.2661796,0.00013391,2]
[402408254,1768672587819,-500.0,0.00013391,2]
[402408255,1768672587849,-500.0,0.00013391,2]
[402408256,1768672587880,-500.0,0.00013391,2]
[402408257,1768672587913,-500.0,0.00013391,2]
[402408258,1768672587946,-500.0,0.00013391,2]
[402408259,1768672587980,-392.14658369,0.00013391,2]
[402408260,1768672588010,-500.0,0.00013391,2]
[402408261,1768672589506,2553.18447342,0.00013392,2]
[402408262,1768672589533,2446.81552658,0.00013392,2]
[402408263,1768672612408,222.06,8.758e-05,2]
[402408264,1768672615573,500.0,0.00027397,120]
[402408268,1768672696419,219.24,8.752e-05,2]
[402408269,1768672720574,-438.48,9.168e-05,2]
[402408270,1768672720597,-561.52,9.585e-05,2]
[402408273,1768672730015,-96.19,9.585e-05,2]
[402408274,1768672730039,-876.95,0.00010002,2]
[402408275,1768672778299,191.34,8.764e-05,2]
[402408276,1768672803138,1057.60837382,8.918e-05,2]
[402408277,1768672804017,-228.498616,9.09e-05,2]
[402408278,1768672807802,-451.35858715,9.09e-05,2]
[402408279,1768672809992,5000.0,8.931e-05,2]
[402408280,1768672810357,-267.67102041,9.09e-05,2]
[402408281,1768672814322,-216.69513228,9.09e-05,2]
[402408282,1768672815876,-301.85311576,9.09e-05,2]
[402408283,1768672817999,-251.59118923,9.09e-05,2]
[402408284,1768672821212,-189.47958343,9.09e-05,2]
[402408285,1768672822697,-171.49066336,9.09e-05,2]
[402408286,1768672824115,-263.64472173,9.09e-05,2]
[402408287,1768672827212,-45.92869042,9.09e-05,2]
[402408288,1768672827235,-131.66130958,9.09e-05,2]
[402408289,1768672828811,-403.89605727,9.09e-05,2]
[402408290,1768672833801,5000.0,8.931e-05,2]
[402408291,1768672842126,1907.13595564,8.931e-05,2]
[402408292,1768672857783,5000.0,8.931e-05,2]
[402408293,1768672862920,188.9,8.761e-05,2]
[402408294,1768672882404,5000.0,8.931e-05,2]
[402408295,1768672906759,5000.0,8.931e-05,2]
[402408297,1768672927703,500.0,0.00027397,120]
[402408298,1768672930114,5000.0,8.931e-05,2]
[402408299,1768672953087,5000.0,8.931e-05,2]
[402408307,1768672975831,5000.0,8.931e-05,2]
[402408311,1768672999128,5000.0,8.931e-05,2]
[402408312,1768673021595,5000.0,8.931e-05,2]
[402408313,1768673029074,186.5,8.819e-05,2]
[402408314,1768673044117,5000.0,8.931e-05,2]
[402408315,1768673066491,5000.0,8.931e-05,2]
[402408316,1768673089073,5000.0,8.931e-05,2]
[402408317,1768673111547,5000.0,8.931e-05,2]
[402408318,1768673112413,184.12,8.801e-05,2]
[402408320,1768673135670,5000.0,8.931e-05,2]
[402408321,1768673158090,5000.0,8.931e-05,2]
[402408324,1768673180981,5000.0,8.931e-05,2]
[402408325,1768673195177,181.78,8.812e-05,2]
[402408326,1768673204514,1775.81159533,8.931e-05,2]
[402408327,1768673239312,500.0,0.00027397,120]
[402408338,1768673282842,179.47,8.812e-05,2]
[402408346,1768673369081,177.18,8.792e-05,2]
[402408347,1768673382373,5000.0,8.931e-05,2]
[402408371,1768673432259,-201.6067149,9.112e-05,2]
[402408372,1768673432270,-354.36,9.211e-05,2]
[402408374,1768673432280,-444.0332851,9.629e-05,2]
[402408378,1768673432330,-87.5067149,9.629e-05,2]
[402408379,1768673432339,-708.72,0.00010048,2]
[402408380,1768673432349,-632.75207959,0.00010467,2]
[402408381,1768673432360,-253.15792041,0.00010467,2]
[402408382,1768673432370,-1200.0,0.00010743,2]
[402408383,1768673432379,-17781.9835514,0.00010744,2]
[402408384,1768673432388,-1063.09,0.00010885,2]
[402408385,1768673432397,-237.89592358,0.00011112,2]
[402408386,1768673432407,-1240.27,0.00011304,2]
[402408387,1768673432416,-500.0,0.00011313,2]
[402408388,1768673432426,-500.0,0.00011313,2]
[402408389,1768673432435,-227.50014763,0.00011313,2]
[402408390,1768673432446,-500.0,0.00011313,2]
[402408391,1768673432456,-521.06752398,0.00011313,2]
[402408392,1768673432465,-500.0,0.00011313,2]
[402408393,1768673432474,-500.0,0.00011313,2]
[402408394,1768673432484,-500.0,0.00011313,2]
[402408395,1768673432493,-500.0,0.00011313,2]
[402408396,1768673432503,-500.0,0.00011313,2]
[402408397,1768673432512,-500.0,0.00011313,2]
[402408398,1768673432521,-500.0,0.00011313,2]
[402408399,1768673432531,-500.0,0.00011313,2]
[402408400,1768673432540,-500.0,0.00011313,2]
[402408401,1768673432550,-500.0,0.00011313,2]
[402408402,1768673432559,-500.0,0.00011313,2]
[402408403,1768673432569,-500.0,0.00011313,2]
[402408404,1768673432579,-500.0,0.00011313,2]
[402408405,1768673432588,-500.0,0.00011313,2]
[402408406,1768673432598,-458.28240449,0.00011313,2]
[402408407,1768673432608,-500.0,0.00011313,2]
[402408408,1768673432617,-500.0,0.00011313,2]
[402408409,1768673432626,-500.0,0.00011313,2]
[402408410,1768673432635,-500.0,0.00011313,2]
[402408411,1768673432644,-500.0,0.00011313,2]
[402408412,1768673432655,-500.0,0.00011313,2]
[402408413,1768673432665,-500.0,0.00011313,2]
[402408414,1768673432674,-500.0,0.00011313,2]
[402408415,1768673432684,-500.0,0.00011313,2]
[402408416,1768673432695,-500.0,0.00011313,2]
[402408417,1768673432705,-500.0,0.00011313,2]
[402408418,1768673432807,-500.0,0.00011313,2]
[402408419,1768673432877,-500.0,0.00011313,2]
[402408420,1768673432887,-500.0,0.00011313,2]
[402408421,1768673432897,-500.0,0.00011313,2]
[402408422,1768673432907,-500.0,0.00011313,2]
[402408423,1768673432916,-500.0,0.00011313,2]
[402408424,1768673432925,-500.0,0.00011313,2]
[402408425,1768673432934,-500.0,0.00011313,2]
[402408426,1768673432944,-500.0,0.00011313,2]
[402408427,1768673432955,-500.0,0.00011313,2]
[402408428,1768673432964,-500.0,0.00011313,2]
[402408429,1768673432974,-597.95782375,0.00011313,2]
[402408430,1768673432983,-500.0,0.00011313,2]
[402408431,1768673432993,-500.0,0.00011313,2]
[402408432,1768673433002,-500.0,0.00011313,2]
[402408433,1768673433011,-500.0,0.00011313,2]
[402408434,1768673433020,-500.0,0.00011313,2]
[402408435,1768673433030,-500.0,0.00011313,2]
[402408436,1768673433040,-500.0,0.00011313,2]
[402408437,1768673433050,-250.0,0.00011313,2]
[402408438,1768673433060,-1417.45,0.00011723,2]
[402408439,1768673433070,-1594.63,0.00012141,2]
[402408440,1768673433079,-4341.355686,0.00012437,2]
[402408441,1768673433089,-1771.81,0.0001256,2]
[402408442,1768673433098,-274.18513226,0.00013112,2]
[402408443,1768673433107,-500.0,0.00013391,2]
[402408444,1768673433117,-500.0,0.00013391,2]
[402408445,1768673433126,-500.0,0.00013391,2]
[402408446,1768673433136,-187.01645614,0.00013391,2]
[402408447,1768673433145,-3074.08,0.00013698,2]
[402408448,1768673433155,-3074.08,0.00013698,2]
[402408449,1768673433165,-3074.08,0.00013698,2]
[402408450,1768673433175,-3074.08,0.00013698,2]
[402408451,1768673433184,-3074.08,0.00013698,2]
[402408452,1768673433193,-3074.08,0.00013698,2]
[402408453,1768673433203,-3074.08,0.00013698,2]
[402408454,1768673433213,-3074.08,0.00013698,2]
[402408455,1768673433222,-3074.08,0.00013698,2]
[402408456,1768673433232,-3074.08,0.00013698,2]
[402408457,1768673433241,-3074.08,0.00013698,2]
[402408458,1768673433251,-3074.08,0.00013698,2]
[402408459,1768673433260,-3074.08,0.00013698,2]
[402408460,1768673433271,-3074.08,0.00013698,2]
[402408461,1768673433280,-3074.08,0.00013698,2]
[402408462,1768673433290,-3074.08,0.00013698,2]
[402408463,1768673433299,-832.87797454,0.00013698,2]
[402408486,1768673438409,-1531.28253876,0.00013698,2]
[402408489,1768673438420,-709.9194867,0.00013698,2]
[402408491,1768673438429,-3074.08,0.00013698,2]
[402408493,1768673438444,-3074.08,0.00013698,2]
[402408496,1768673438455,-3074.08,0.00013698,2]
[402408498,1768673438466,-3074.08,0.00013698,2]
[402408500,1768673438476,-3074.08,0.00013698,2]
[402408502,1768673438487,-3074.08,0.00013698,2]
[402408504,1768673438497,-3074.23071419,0.00013698,2]
[402408506,1768673438507,-968.6873895,0.00014016,2]
[402408508,1768673438517,-216.1433723,0.00014368,2]
[402408510,1768673438527,-161.9913003,0.00014648,2]
[402408512,1768673438538,-161.9913003,0.00015101,2]
[402408514,1768673438547,-310.47434094,0.00015112,2]
[402408516,1768673438557,-288.26114,0.00015499,2]
[402408518,1768673438567,-161.99130029,0.00015569,2]
[402408520,1768673438576,-5000.0,0.00015678,2]
[402408522,1768673438585,-2000.0,0.00015679,2]
[402408524,1768673438596,-445.202766,0.00015679,2]
[402408526,1768673438606,-500.0,0.00015679,2]
[402408528,1768673438616,-300.73,0.00015679,2]
[402408530,1768673438625,-2000.0,0.00015679,2]
[402408532,1768673438635,-500.0,0.00015679,2]
[402408534,1768673438645,-2000.0,0.00015679,2]
[402408536,1768673438655,-500.0,0.00015679,2]
[402408538,1768673438669,-2000.0,0.00015679,2]
[402408540,1768673438679,-500.0,0.00015679,2]
[402408542,1768673438689,-500.0,0.00015679,2]
[402408545,1768673438700,-343.03408281,0.00015679,2]
[402408546,1768673438712,-231.36846651,0.00015679,2]
[402408549,1768673438722,-7037.28417483,0.00015679,2]
[402408551,1768673438734,-2150.738,0.00015679,2]
[402408553,1768673438743,-162.380719,0.00015679,2]
[402408555,1768673438753,-168.3888056,0.00015679,2]
[402408557,1768673438763,-174.61919141,0.00015679,2]
[402408559,1768673438772,-181.08010149,0.00015679,2]
[402408561,1768673438782,-187.78006525,0.00015679,2]
[402408563,1768673438792,-194.72792766,0.00015679,2]
[402408565,1768673438801,-201.93286099,0.00015679,2]
[402408567,1768673438811,-209.40437684,0.00015679,2]
[402408569,1768673438820,-217.15233878,0.00015679,2]
[402408571,1768673438830,-225.18697532,0.00015679,2]
[402408573,1768673438840,-233.51889341,0.00015679,2]
[402408575,1768673438849,-242.15909246,0.00015679,2]
[402408577,1768673438859,-251.11897888,0.00015679,2]
[402408579,1768673438869,-260.4103811,0.00015679,2]
[402408581,1768673438878,-270.0455652,0.00015679,2]
[402408583,1768673438888,-280.03725112,0.00015679,2]
[402408585,1768673438898,-290.39862941,0.00015679,2]
[402408587,1768673438908,-301.1433787,0.00015679,2]
[402408589,1768673438918,-1041.66666667,0.00015889,2]
[402408591,1768673438928,-3000.0,0.00016,2]
[402408594,1768673438942,-3264.297449,0.0001601,2]
[402408596,1768673438952,-461.67526834,0.00016227,2]
[402408598,1768673438963,-311.85701,0.00016227,2]
[402408600,1768673438973,-2230.315306,0.00016227,2]
[402408602,1768673438983,-3000.0,0.00016428,2]
[402408604,1768673438994,-500.0,0.00016438,3]
[402408606,1768673439004,-500.0,0.00016438,2]
[402408608,1768673439015,-500.0,0.00016438,3]
[402408610,1768673439024,-500.0,0.00016438,3]
[402408612,1768673439034,-500.0,0.00016438,3]
[402408614,1768673439044,-500.0,0.00016438,3]
[402408616,1768673439054,-500.0,0.00016438,3]
[402408618,1768673439064,-439.35438374,0.00016438,3]
[402408620,1768673439073,-500.0,0.00016438,3]
[402408622,1768673439082,-531.57,0.00016438,3]
[402408624,1768673439091,-500.0,0.00016438,3]
[402408626,1768673439102,-500.0,0.00016438,3]
[402408628,1768673439113,-500.0,0.00016438,3]
[402408630,1768673439122,-645.66,0.00016438,3]
[402408633,1768673439131,-500.0,0.00016438,3]
[402408635,1768673439142,-1004.37,0.00016438,3]
[402408637,1768673439152,-500.0,0.00016438,3]
[402408639,1768673439161,-500.0,0.00016438,3]
[402408641,1768673439170,-593.77,0.00016438,3]
[402408643,1768673439179,-500.0,0.00016438,3]
[402408645,1768673439189,-500.0,0.00016438,3]
[402408647,1768673439198,-435.32524061,0.00016438,3]
[402408649,1768673439208,-500.0,0.00016438,3]
[402408651,1768673439217,-898.19434577,0.00016438,3]
[402408653,1768673439227,-500.0,0.00016438,3]
[402408655,1768673439236,-500.0,0.00016438,3]
[402408657,1768673439247,-976.67,0.00016438,3]
[402408659,1768673439257,-550.19,0.00016438,3]
[402408701,1768673439620,-520.73,0.00016438,3]
[402408703,1768673439634,-417.85698666,0.00016438,3]
[402408705,1768673439644,-500.0,0.00016438,3]
[402408707,1768673439655,-500.0,0.00016438,3]
[402408709,1768673439667,-500.0,0.00016438,3]
[402408711,1768673439676,-500.0,0.00016438,3]
[402408713,1768673439686,-500.0,0.00016438,3]
[402408716,1768673439697,-500.0,0.00016438,3]
[402408718,1768673439707,-500.0,0.00016438,3]
[402408719,1768673439718,-500.0,0.00016438,3]
[402408721,1768673439729,-500.0,0.00016438,3]
[402408723,1768673439740,-500.0,0.00016438,3]
[402408725,1768673439749,-500.0,0.00016438,3]
[402408727,1768673439760,-500.0,0.00016438,3]
[402408730,1768673439769,-500.0,0.00016438,3]
[402408732,1768673439779,-500.0,0.00016438,3]
[402408733,1768673439789,-500.0,0.00016438,3]
[402408736,1768673439798,-500.0,0.00016438,3]
[402408738,1768673439807,-500.0,0.00016438,3]
[402408739,1768673439817,-500.0,0.00016438,3]
[402408741,1768673439826,-500.0,0.00016438,3]
[402408744,1768673439843,-500.0,0.00016438,3]
[402408747,1768673439856,-506.77,0.00016438,3]
[402408749,1768673439866,-684.33,0.00016438,3]
[402408751,1768673439876,-500.0,0.00016438,3]
[402408753,1768673439886,-672.75,0.00016438,3]
[402408755,1768673439896,-500.0,0.00016438,3]
[402408757,1768673439907,-500.0,0.00016438,3]
[402408760,1768673439918,-500.0,0.00016438,3]
[402408762,1768673439928,-500.0,0.00016438,3]
[402408764,1768673439938,-500.0,0.00016438,3]
[402408766,1768673439948,-500.0,0.00016438,3]
[402408768,1768673439959,-500.0,0.00016438,2]
[402408770,1768673439970,-500.0,0.00016438,3]
[402408772,1768673439980,-807.7,0.00016438,3]
[402408775,1768673439990,-500.0,0.00016438,3]
[402408777,1768673440000,-500.0,0.00016438,3]
[402408779,1768673440009,-621.02,0.00016438,3]
[402408781,1768673440019,-500.0,0.00016438,3]
[402408783,1768673440028,-500.0,0.00016438,3]
[402408786,1768673440038,-500.0,0.00016438,3]
[402408788,1768673440048,-575.88539769,0.00016438,3]
[402408790,1768673440058,-500.0,0.00016438,3]
[402408792,1768673440067,-500.0,0.00016438,3]
[402408794,1768673440077,-500.0,0.00016438,3]
[402408796,1768673440087,-500.0,0.00016438,3]
[402408798,1768673440097,-500.0,0.00016438,3]
[402408800,1768673440106,-500.0,0.00016438,3]
[402408802,1768673440116,-500.0,0.00016438,3]
[402408803,1768673440125,-500.0,0.00016438,3]
[402408804,1768673440135,-988.01,0.00016438,3]
[402408805,1768673440145,-500.0,0.00016438,3]
[402408806,1768673440155,-500.0,0.00016438,3]
[402408807,1768673440164,-500.0,0.00016438,3]
[402408808,1768673440173,-500.0,0.00016438,3]
[402408809,1768673440183,-500.0,0.00016438,3]
[402408810,1768673440192,-1425.92,0.00016438,3]
[402408811,1768673440202,-500.0,0.00016438,3]
[402408812,1768673440211,-500.0,0.00016438,3]
[402408813,1768673440221,-500.0,0.00016438,3]
[402408814,1768673440230,-500.0,0.00016438,3]
[402408815,1768673440240,-500.0,0.00016438,3]
[402408816,1768673440249,-500.0,0.00016438,3]
[402408817,1768673440259,-727.0,0.00016438,3]
[402408818,1768673440269,-757.81,0.00016438,3]
[402408819,1768673440278,-500.0,0.00016438,3]
[402408820,1768673440287,-358.09548366,0.00016438,3]
[402408821,1768673440297,-560.2982487,0.00016438,3]
[402408822,1768673440307,-500.0,0.00016438,3]
[402408823,1768673440317,-500.0,0.00016438,3]
[402408824,1768673440327,-500.0,0.00016438,3]
[402408825,1768673440336,-740.24,0.00016438,3]
[402408826,1768673440346,-626.64,0.00016438,3]
[402408827,1768673440355,-500.0,0.00016438,3]
[402408828,1768673440365,-1294.49,0.00016438,3]
[402408829,1768673440374,-753.11,0.00016438,3]
[402408830,1768673440383,-738.19,0.00016438,3]
[402408831,1768673440393,-500.0,0.00016438,3]
[402408833,1768673440402,-500.0,0.00016438,3]
[402408835,1768673440412,-500.0,0.00016438,3]
[402408837,1768673440422,-500.0,0.00016438,3]
[402408839,1768673440431,-735.99,0.00016438,3]
[402408841,1768673440441,-500.0,0.00016438,3]
[402408844,1768673440451,-1244.19,0.00016438,3]
[402408846,1768673440461,-661.84,0.00016438,3]
[402408848,1768673440471,-666.96,0.00016438,3]
[402408850,1768673440481,-500.0,0.00016438,3]
[402408852,1768673440490,-500.0,0.00016438,3]
[402408854,1768673440500,-500.0,0.00016438,3]
[402408856,1768673440509,-500.0,0.00016438,3]
[402408858,1768673440520,-500.0,0.00016438,3]
[402408860,1768673440529,-1000.0,0.00016438,2]
[402408862,1768673440538,-1024.18,0.00016438,3]
[402408864,1768673440547,-820.17,0.00016438,3]
[402408866,1768673440557,-500.0,0.00016438,3]
[402408868,1768673440567,-500.0,0.00016438,3]
[402408870,1768673440577,-500.0,0.00016438,3]
[402408872,1768673440586,-500.0,0.00016438,3]
[402408874,1768673440596,-616.59,0.00016438,3]
[402408876,1768673440606,-500.0,0.00016438,3]
[402408878,1768673440616,-500.0,0.00016438,3]
[402408881,1768673440626,-500.0,0.00016438,3]
[402408883,1768673440636,-500.0,0.00016438,3]
[402408885,1768673440645,-500.0,0.00016438,3]
[402408887,1768673440663,-500.0,0.00016438,3]
[402408889,1768673440674,-500.0,0.00016438,3]
[402408891,1768673440684,-500.0,0.00016438,3]
[402408893,1768673440696,-500.0,0.00016438,3]
[402408896,1768673440706,-967.89,0.00016438,3]
[402408898,1768673440717,-500.0,0.00016438,3]
[402408900,1768673440728,-500.0,0.00016438,3]
[402408902,1768673440740,-500.0,0.00016438,3]
[402408904,1768673440750,-500.0,0.00016438,3]
[402408906,1768673440760,-500.0,0.00016438,3]
[402408908,1768673440770,-500.0,0.00016438,3]
[402408910,1768673440780,-500.0,0.00016438,3]
[402408912,1768673440789,-1133.75,0.00016438,3]
[402408914,1768673440799,-500.0,0.00016438,3]
[402408916,1768673440808,-500.0,0.00016438,3]
[402408919,1768673440819,-858.07,0.00016438,3]
[402408921,1768673440829,-774.33,0.00016438,3]
[402408923,1768673440838,-942.42,0.00016438,3]
[402408925,1768673440848,-500.0,0.00016438,3]
[402408927,1768673440858,-500.0,0.00016438,3]
[402408929,1768673440867,-760.62,0.00016438,3]
[402408931,1768673440877,-500.0,0.00016438,3]
[402408933,1768673440887,-500.0,0.00016438,3]
[402408935,1768673440897,-500.0,0.00016438,3]
[402408937,1768673440907,-500.0,0.00016438,3]
[402408939,1768673440917,-483.43506742,0.00016438,3]
[402408941,1768673440928,-500.0,0.00016438,3]
[402408944,1768673440938,-500.0,0.00016438,3]
[402408946,1768673440948,-500.0,0.00016438,3]
[402408948,1768673440957,-666.57,0.00016438,3]
[402408950,1768673440967,-500.0,0.00016438,3]
[402408952,1768673440976,-500.0,0.00016438,3]
[402408954,1768673440986,-1440.84,0.00016438,3]
[402408956,1768673440996,-345.54297394,0.00016438,3]